bitfinex/quotes_ETHUSD_20251015
["timestamp","ask_amount","ask_price","bid_price","bid_amount"]
[1760535026816,9.98403604,4076.7,4075.9,0.2105]
[1760535027143,0.00080001,4076.6,4076.5,2.45308475]
[1760535027340,3.60880001,4076.6,4076.5,3.39121457]
[1760535027635,3.60880001,4076.6,4076.2,0.2059]
[1760535027820,3.60880001,4076.6,4075.9,0.2105]
[1760535028140,1.728,4076.5,4075.9,0.1224]
[1760535028310,9.98403604,4076.1,4075.8,0.65896633]
[1760535028511,0.00080001,4076.0,4075.8,0.65896633]
[1760535028715,3.612,4075.9,4075.8,1.10646633]
[1760535029038,3.612,4075.9,4075.8,0.65816633]
[1760535029239,1.728,4076.5,4075.8,0.65816633]
[1760535029531,1.104,4075.9,4075.8,0.65816633]
[1760535029705,3.612,4075.9,4075.8,0.65816633]
[1760535029905,0.1224,4076.4,4075.8,1.43071146]
[1760535030130,3.612,4076.3,4075.8,1.55311146]
[1760535030334,0.4434,4076.2,4075.8,0.78056633]
[1760535030516,0.6336,4075.6,4071.0,0.00331643]
[1760535030821,1.728,4073.1,4072.1,0.656]
[1760535031019,0.6336,4074.5,4072.3,0.28612583]
[1760535031020,3.624,4073.0,4072.3,0.28612583]
[1760535031244,0.2163,4073.6,4072.4,0.02455554]
[1760535031540,1.104,4072.9,4072.3,0.28612583]
[1760535031716,1.728,4072.7,4071.2,0.00125255]
[1760535031918,0.4342,4072.6,4071.6,2.45599675]
[1760535032219,1.728,4073.4,4071.2,0.00125255]
[1760535032414,1.105,4072.5,4071.2,0.00125255]
[1760535032615,1.728,4072.3,4071.2,0.00125255]
[1760535032841,0.4342,4072.3,4071.2,0.00125255]
[1760535033029,4.7018,4072.3,4072.2,2.20085826]
[1760535033227,4.7018,4072.3,4069.2,2.26191804]
[1760535033228,0.00333203,4071.9,4069.2,2.26191804]
[1760535033463,0.6336,4072.0,4069.2,2.26191804]
[1760535033464,0.8502,4069.3,4069.2,1.78691804]
[1760535033609,10.564848,4069.3,4069.2,1.78691804]
[1760535033810,10.652879,4069.3,4069.2,1.78691804]
[1760535034011,4.5323,4069.3,4069.2,1.78691804]
[1760535034211,1.728,4069.3,4069.2,1.78691804]
[1760535034436,4.278,4069.3,4069.2,1.78691804]
[1760535034758,14.36103604,4069.3,4069.2,1.78691804]
[1760535035064,1.728,4069.3,4069.2,1.78691804]
[1760535035275,3.666,4069.3,4069.2,2.23441804]
[1760535035423,3.666,4069.3,4069.2,1.78691804]
[1760535036217,8.001065,4069.2,4068.6,0.003]
[1760535036408,16.11063604,4069.3,4066.3,2.31857782]
[1760535036409,1.728,4068.6,4066.6,0.2275]
[1760535036730,3.671,4068.5,4066.7,0.47208996]
[1760535037048,1.728,4068.4,4066.7,0.4475]
[1760535037236,0.2155,4066.8,4066.3,2.31857782]
[1760535037440,0.94996874,4068.7,4066.3,1.21837782]
[1760535037649,1.105,4067.4,4066.5,3.708791]
[1760535037814,0.87,4067.3,4067.2,2.45869394]
[1760535038012,0.1176,4071.0,4068.7,2.45778749]
[1760535038013,0.38544956,4070.9,4068.7,2.45778749]
[1760535038336,0.38544956,4070.9,4067.1,0.2275]
[1760535038337,0.0998,4071.8,4068.9,3.5602]
[1760535038515,2.9076,4071.9,4069.0,0.4475]
[1760535038719,0.0998,4071.9,4069.1,0.25207545]
[1760535038914,0.0998,4072.7,4069.2,10.27342406]
[1760535039213,0.198,4071.9,4069.9,0.6336]
[1760535039413,0.182,4071.8,4070.2,0.6336]
[1760535039627,0.38514715,4073.9,4071.7,0.2275]
[1760535039955,0.557,4073.8,4071.9,2.45585598]
[1760535040243,0.557,4073.8,4072.0,0.4427]
[1760535040621,11.88301,4073.6,4071.2,0.2329]
[1760535040826,7.504594,4073.4,4071.2,0.2329]
[1760535041135,2.3616,4073.0,4071.2,0.2329]
[1760535041337,0.6336,4072.3,4069.9,0.2275]
[1760535041538,0.2116,4071.3,4069.9,0.2275]
[1760535041736,2.1327,4070.9,4068.7,0.2329]
[1760535041920,1.728,4070.7,4068.7,0.2329]
[1760535042247,2.3616,4070.2,4068.7,0.2329]
[1760535042450,1.728,4070.0,4069.2,2.4574854]
[1760535042650,1.728,4070.0,4069.3,2.69031568]
[1760535042948,1.728,4070.0,4068.3,2.90067821]
[1760535043150,2.597,4070.1,4067.6,0.6756]
[1760535043151,0.6336,4069.7,4067.6,0.6756]
[1760535043319,1.728,4069.3,4067.6,0.6756]
[1760535043523,1.728,4069.1,4067.6,0.6756]
[1760535044250,1.728,4069.1,4067.7,0.4427]
[1760535044452,1.728,4069.1,4067.7,0.46728391]
[1760535044631,1.728,4069.1,4068.6,2.45782679]
[1760535044845,1.728,4069.1,4067.5,2.45848975]
[1760535045038,1.106,4069.0,4067.9,0.6336]
[1760535045238,1.106,4069.0,4068.4,2.45790878]
[1760535045464,0.1173,4070.8,4068.5,0.6756]
[1760535045465,1.106,4069.7,4068.5,0.6756]
[1760535045642,2.598,4069.6,4068.2,0.2329]
[1760535045846,2.598,4069.6,4067.8,0.4427]
[1760535045847,1.728,4069.5,4067.8,0.4427]
[1760535046064,0.6336,4069.2,4067.3,0.2329]
[1760535046369,0.1043,4069.4,4067.4,0.269163]
[1760535046677,0.1043,4069.4,4067.3,0.2329]
[1760535046678,0.6336,4069.2,4067.3,2.69150049]
[1760535046860,8.084536,4069.3,4067.3,0.2329]
[1760535046861,1.728,4069.3,4067.3,0.2329]
[1760535047060,0.1043,4070.3,4067.7,0.6336]
[1760535047238,0.1043,4070.3,4067.3,0.2329]
[1760535047239,1.202,4070.2,4067.8,0.46728331]
[1760535047439,1.202,4070.2,4068.1,0.6336]
[1760535047640,1.202,4070.2,4068.2,1.006742]
[1760535047839,1.202,4070.2,4068.2,0.6756]
[1760535048041,1.202,4070.2,4069.9,2.45700622]
[1760535048240,1.202,4070.2,4069.6,0.2329]
[1760535048479,1.106,4070.3,4069.7,1.0763]
[1760535048671,1.106,4070.3,4070.2,2.45688172]
[1760535048872,2.243,4070.3,4070.2,0.93408543]
[1760535049175,2.213,4071.3,4070.3,0.6336]
[1760535049376,2.213,4071.3,4071.2,2.68917824]
[1760535049591,2.213,4071.3,4070.8,0.2329]
[1760535049896,2.213,4071.3,4070.3,0.2329]
[1760535050045,2.213,4071.3,4070.4,0.4427]
[1760535050250,1.106,4071.3,4071.2,2.45627824]
[1760535050440,1.107,4074.4,4072.2,2.45565759]
[1760535050678,0.1224,4072.7,4072.1,0.1224]
[1760535050878,2.3711,4073.9,4072.1,0.1224]
[1760535050879,0.1224,4073.1,4072.5,2.5778704]
[1760535051080,2.427,4073.0,4072.3,0.6336]
[1760535051252,2.427,4073.0,4072.9,2.45525301]
[1760535051576,2.427,4073.0,4072.9,2.89795301]
[1760535052373,1.107,4074.4,4073.0,0.6336]
[1760535052576,1.107,4074.4,4074.1,2.45447786]
[1760535052775,1.107,4074.4,4074.3,0.2329]
[1760535052943,2.361,4074.4,4074.3,2.68730934]
[1760535053145,1.254,4074.4,4074.3,3.66748074]
[1760535053374,1.106,4075.2,4074.4,0.6336]
[1760535053579,0.0982,4076.5,4074.3,1.2130714]
[1760535053580,1.077,4075.1,4074.5,0.4427]
[1760535053748,2.101,4075.0,4074.5,0.4427]
[1760535053953,2.101,4075.0,4074.6,2.45422863]
[1760535054155,2.101,4075.0,4074.3,0.2329]
[1760535054589,2.101,4075.0,4074.1,0.4593]
[1760535054891,0.1563,4075.9,4074.1,0.4593]
[1760535054892,0.1563,4075.9,4075.3,2.45380521]
[1760535055194,0.0993,4076.7,4075.1,0.2163]
[1760535055488,0.0993,4076.7,4075.5,2.45366947]
[1760535055791,3.71,4076.6,4075.1,0.2163]
[1760535055945,1.728,4076.5,4075.0,2.45393504]
[1760535056147,1.728,4076.5,4074.6,0.2163]
[1760535056371,1.728,4076.5,4074.6,3.12981378]
[1760535056577,0.0999,4076.8,4074.6,0.6756]
[1760535056578,1.728,4076.3,4074.6,0.6756]
[1760535056783,1.728,4076.3,4074.8,2.45410817]
[1760535057300,1.728,4076.3,4074.6,0.6756]
[1760535057301,1.728,4076.3,4074.7,0.6336]
[1760535057590,1.106,4077.3,4076.4,2.45309282]
[1760535057793,1.106,4077.3,4076.4,0.4593]
[1760535057986,1.106,4077.3,4076.2,0.2163]
[1760535057987,1.106,4077.3,4076.7,2.4529598]
[1760535058289,1.106,4077.3,4076.8,2.45290423]
[1760535058498,1.106,4077.3,4076.8,3.54580423]
[1760535058652,11.12107173,4076.9,4076.8,1.69277999]
[1760535058846,11.12107173,4076.9,4076.8,3.54580423]
[1760535059049,8.51807173,4076.9,4076.8,3.54580423]
[1760535059264,0.38451926,4080.1,4077.1,0.6336]
[1760535059265,0.001,4077.4,4077.1,0.6336]
[1760535059446,1.106,4080.3,4078.5,3.08548181]
[1760535059655,1.106,4080.3,4078.5,0.6336]
[1760535059656,1.106,4079.6,4078.5,0.6336]
[1760535059867,2.604,4078.6,4078.4,2.45188418]
[1760535060054,2.604,4078.6,4078.5,2.45188181]
[1760535060262,2.604,4078.6,4077.0,0.2163]
[1760535060263,0.001,4078.6,4077.1,0.4593]
[1760535060468,3.71,4078.5,4077.0,0.2163]
[1760535060646,3.71,4078.5,4076.5,0.2163]
[1760535060647,1.728,4078.4,4076.5,0.2163]
[1760535060879,0.25,4078.3,4076.0,0.6756]
[1760535061049,1.728,4078.4,4077.2,2.4526528]
[1760535061246,1.728,4078.4,4077.3,0.2163]
[1760535061451,1.107,4078.6,4078.5,2.45188181]
[1760535061650,3.712,4078.6,4078.5,0.6336]
[1760535061851,3.712,4078.6,4078.5,3.54478181]
[1760535062266,0.001,4078.6,4078.5,3.54478181]
[1760535062505,1.106,4080.3,4079.0,3.08518126]
[1760535062651,13.6289147,4080.5,4078.8,2.45166557]
[1760535062652,2.604,4079.1,4078.8,2.45166557]
[1760535062852,2.604,4079.1,4079.0,2.45158126]
[1760535063168,2.604,4079.1,4078.6,0.6336]
[1760535063492,2.604,4079.1,4078.5,0.62130602]
[1760535063493,2.605,4079.0,4078.9,2.45164137]
[1760535063710,2.605,4079.0,4078.4,0.4593]
[1760535063869,2.605,4079.0,4078.3,0.2163]
[1760535064065,2.605,4079.0,4078.1,2.66840865]
[1760535064291,2.605,4079.0,4078.2,0.48382062]
[1760535064506,8.54745581,4081.8,4078.2,0.48382062]
[1760535064507,0.1828,4081.3,4078.3,6.847982]
[1760535064835,1.728,4080.3,4078.5,0.6336]
[1760535065110,5.438,4080.4,4078.7,0.6336]
[1760535065276,1.728,4080.3,4079.5,2.45127031]
[1760535065472,2.45014951,4081.4,4079.5,2.45127031]
[1760535065473,1.105,4080.6,4079.6,0.6581122]
[1760535065670,1.105,4080.6,4080.2,2.66711375]
[1760535065872,0.4062,4081.6,4080.4,0.6336]
[1760535066117,16.2329147,4080.5,4080.4,3.08434012]
[1760535066312,16.2329147,4080.5,4080.2,0.2163]
[1760535066525,16.2329147,4080.5,4079.7,0.6336]
[1760535066687,16.2329147,4080.5,4079.0,0.6756]
[1760535067015,16.2329147,4080.5,4079.1,0.6336]
[1760535067221,13.6289147,4080.5,4080.4,2.45074012]
[1760535067424,13.6289147,4080.5,4080.4,3.54364012]
[1760535067584,13.6289147,4080.5,4080.4,16.47917012]
[1760535067926,10.63453365,4080.5,4080.4,3.08434012]
[1760535068086,10.63453365,4080.5,4080.4,0.6336]
[1760535068414,8.03053365,4080.5,4080.4,3.54364012]
[1760535068719,14.9066255,4082.0,4081.9,2.44983953]
[1760535068884,14.9066255,4082.0,4081.2,0.4593]
[1760535069085,14.9066255,4082.0,4081.0,3.08392258]
[1760535069281,14.9066255,4082.0,4081.9,2.44983953]
[1760535069485,14.9066255,4082.0,4081.9,3.08343953]
[1760535070032,14.9066255,4082.0,4081.9,0.6336]
[1760535070234,17.5096255,4082.0,4081.9,3.54253953]
[1760535070586,17.5096255,4082.0,4081.9,0.6336]
[1760535070884,17.5096255,4082.0,4081.9,1.0927]
[1760535070886,14.9066255,4082.0,4081.9,1.0927]
[1760535071138,17.5096255,4082.0,4081.2,1.728]
[1760535071320,14.9066255,4082.0,4081.9,3.54253953]
[1760535071529,12.7781076,4083.3,4083.2,2.44905956]
[1760535071829,3.80046558,4083.3,4083.2,3.54175956]
[1760535072011,0.001,4083.8,4083.7,3.0823597]
[1760535072387,0.001,4083.8,4083.7,3.56594729]
[1760535072609,0.001,4083.8,4083.7,24.11295592]
[1760535072890,0.001,4084.2,4083.7,24.11295592]
[1760535072891,0.001,4084.2,4084.1,2.44851986]
[1760535073093,0.001,4084.2,4084.1,0.6336]
[1760535073485,0.001,4084.2,4084.1,3.08211986]
[1760535073688,0.001,4084.2,4083.5,2.44882815]
[1760535073918,0.001,4084.2,4082.0,2.68326922]
[1760535073919,0.2044,4084.1,4082.0,2.68326922]
[1760535074225,0.2146,4083.6,4082.1,0.2335]
[1760535074425,0.4191,4083.6,4082.1,0.2335]
[1760535074628,0.4191,4083.6,4081.9,0.2335]
[1760535074802,0.001,4084.2,4083.4,2.44889646]
[1760535075020,1.104,4083.5,4083.4,3.08249646]
[1760535075227,1.104,4083.5,4082.3,0.2335]
[1760535075228,3.709,4083.5,4082.3,0.2335]
[1760535075457,3.709,4083.5,4082.0,0.02449779]
[1760535075611,3.709,4083.5,4079.3,2.45134236]
[1760535075612,1.932,4083.4,4081.4,0.2335]
[1760535075814,3.71,4083.3,4082.1,2.44971429]
[1760535076146,0.001,4082.0,4080.9,0.4591]
[1760535076316,2.607,4081.9,4080.9,0.48360439]
[1760535076520,2.607,4081.9,4080.5,0.2294]
[1760535076854,2.607,4081.9,4080.7,2.45050863]
[1760535077159,1.728,4081.8,4080.4,0.002]
[1760535077445,1.9332,4081.8,4081.1,2.45026436]
[1760535077625,3.712,4081.7,4080.4,0.002]
[1760535077823,0.2052,4081.8,4080.5,2.45068006]
[1760535078027,1.499,4081.7,4081.6,2.4500196]
[1760535078217,0.001,4082.0,4081.9,2.44983953]
[1760535078412,0.001,4082.0,4081.9,3.66127435]
[1760535078632,0.595,4082.0,4081.9,3.63677596]
[1760535078831,0.595,4082.0,4081.1,0.2335]
[1760535078832,0.595,4082.0,4080.3,2.45074839]
[1760535079037,0.595,4082.0,4080.8,0.6336]
[1760535079233,0.595,4082.0,4081.7,2.44990632]
[1760535079443,0.595,4082.0,4081.9,2.44983953]
[1760535079644,0.595,4082.0,4081.9,3.08343953]
[1760535079645,0.001,4082.0,4081.9,3.08343953]
[1760535079832,0.001,4082.0,4081.9,5.36477687]
[1760535079833,0.193,4082.0,4081.9,5.36477687]
[1760535080157,0.193,4082.0,4081.9,3.08343953]
[1760535080518,0.001,4082.0,4081.9,3.08343953]
[1760535080847,1.594,4082.0,4081.9,3.08343953]
[1760535081052,0.001,4082.0,4081.9,15.00954953]
[1760535081213,0.001,4082.5,4082.4,3.08313948]
[1760535081554,0.001,4082.5,4082.4,5.36441577]
[1760535081757,0.001,4082.5,4082.4,11.88229477]
[1760535081937,0.001,4082.5,4082.4,12.00469477]
[1760535082140,0.001,4082.9,4082.8,16.4557235]
[1760535082340,0.001,4082.9,4082.8,17.9714085]
[1760535082546,0.001,4084.2,4084.1,0.6336]
[1760535082762,2.61,4084.2,4084.1,2.44851986]
[1760535082946,2.61,4084.2,4083.6,0.6336]
[1760535083147,0.001,4084.2,4084.1,3.08211986]
[1760535083346,2.609,4084.2,4084.1,3.79530505]
[1760535083557,2.609,4084.2,4084.1,3.08211986]
[1760535083737,0.001,4084.2,4084.1,3.08211986]
[1760535083924,2.609,4084.2,4084.1,3.63519218]
[1760535084357,2.609,4084.2,4084.1,3.08211986]
[1760535084561,2.609,4084.2,4084.1,2.44851986]
[1760535084855,0.001,4084.2,4084.1,13.09305186]
[1760535085062,11.9253004,4084.7,4084.6,3.08182014]
[1760535085259,11.9253004,4084.7,4084.6,4.80982014]
[1760535085463,11.9253004,4084.7,4084.6,5.36283246]
[1760535086255,0.001,4085.7,4085.6,3.08122091]
[1760535086461,1.899,4085.7,4085.6,3.08122091]
[1760535086781,1.899,4085.7,4083.5,4.17687963]
[1760535086782,2.1073,4085.7,4083.5,4.17687963]
[1760535086926,2.1073,4085.7,4083.6,0.46513615]
[1760535087122,2.1073,4085.7,4084.8,2.44805356]
[1760535087354,2.1073,4085.7,4083.4,0.2296]
[1760535087355,3.713,4085.6,4085.1,2.44789733]
[1760535087565,2.61,4085.5,4084.5,0.6336]
[1760535087870,2.8183,4085.5,4083.6,2.44877252]
[1760535088026,2.8183,4085.5,4084.7,2.44810085]
[1760535088223,3.712,4085.4,4083.7,1.75248759]
[1760535088450,3.712,4085.4,4083.8,0.22115876]
[1760535088667,0.2083,4085.3,4084.0,1.728]
[1760535088847,0.2083,4085.3,4083.9,0.02448639]
[1760535088848,3.712,4085.2,4084.7,2.44814441]
[1760535089049,0.2154,4084.8,4084.5,2.44827308]
[1760535089250,0.2154,4084.8,4083.1,0.2335]
[1760535089462,0.2084,4084.7,4082.6,0.2335]
[1760535089766,0.2084,4084.7,4083.0,2.44917881]
[1760535089976,0.2084,4084.7,4082.7,0.02449359]
[1760535089977,0.2084,4084.6,4083.7,2.44874479]
[1760535090180,0.2084,4084.6,4083.1,0.2296]
[1760535090340,1.499,4084.5,4083.3,8.234547]
[1760535090539,1.103,4084.8,4084.7,2.4481602]
[1760535090740,0.2084,4085.2,4084.8,2.44810027]
[1760535090988,0.2084,4085.2,4084.3,1.728]
[1760535090989,1.103,4085.1,4084.6,0.6336]
[1760535091138,1.103,4085.1,4084.0,2.44853204]
[1760535091139,0.2152,4084.7,4084.0,2.44853204]
[1760535091344,0.2086,4084.6,4084.0,2.44852819]
[1760535091571,1.787,4085.1,4084.1,0.02448519]
[1760535091783,2.577,4085.0,4084.4,0.6336]
[1760535091957,2.577,4085.0,4084.3,0.6336]
[1760535092146,2.1518,4084.9,4083.3,2.44899958]
[1760535092344,2.1518,4084.9,4083.0,2.44916213]
[1760535092540,3.715,4084.8,4084.2,2.44845699]
[1760535092773,3.715,4084.8,4084.5,0.1224]
[1760535092947,0.216,4084.9,4084.5,0.1224]
[1760535093147,2.3088,4084.8,4084.7,0.1224]
[1760535093580,2.3088,4084.8,4083.8,0.6336]
[1760535093781,2.3088,4084.8,4084.5,0.1224]
[1760535093955,0.2078,4084.7,4084.5,0.1224]
[1760535094155,0.001,4084.6,4083.8,0.6336]
[1760535094361,2.605,4084.5,4084.4,3.08194002]
[1760535094555,2.605,4084.5,4084.4,3.20434002]
[1760535094760,2.605,4084.5,4084.4,0.1224]
[1760535094962,2.8129,4084.5,4084.4,0.1224]
[1760535095156,2.8129,4084.5,4082.8,0.002]
[1760535095486,0.2141,4082.9,4082.8,0.002]
[1760535095682,2.8261,4082.9,4082.8,0.002]
[1760535095856,4.762,4082.9,4081.9,0.002]
[1760535096058,3.034,4082.9,4081.9,0.002]
[1760535096269,3.715,4082.8,4081.9,0.002]
[1760535096469,1.728,4082.7,4081.9,0.002]
[1760535096670,1.934,4082.7,4081.9,0.002]
[1760535096997,1.728,4082.5,4081.9,0.002]
[1760535097150,2.44953948,4082.4,4081.9,0.002]
[1760535097348,0.206,4082.4,4081.9,0.002]
[1760535097754,5.651,4082.4,4081.9,0.002]
[1760535098555,8.10153948,4082.4,4081.9,0.002]
[1760535098755,1.934,4082.4,4081.9,0.002]
[1760535099286,1.934,4082.4,4082.3,2.45154313]
[1760535099287,3.718,4082.4,4082.3,2.45154313]
[1760535099587,1.103,4082.4,4082.3,0.24715431]
[1760535099790,2.6641416,4084.4,4082.5,2.44947948]
[1760535099791,0.2158,4084.4,4082.5,2.44947948]
[1760535099970,1.103,4082.9,4082.8,3.0828995]
[1760535100165,0.2158,4084.4,4083.8,2.44865186]
[1760535100398,0.2158,4084.4,4083.2,2.44905956]
[1760535100689,0.2041,4084.7,4082.9,0.2157]
[1760535100893,1.103,4084.8,4084.5,2.44828008]
[1760535101053,1.644,4084.6,4084.2,2.66412246]
[1760535101266,1.644,4084.6,4084.1,0.6336]
[1760535101466,1.644,4084.6,4083.1,2.66477176]
[1760535101467,0.1905,4084.5,4083.1,2.66477176]
[1760535101665,0.1905,4084.5,4083.3,0.6336]
[1760535101872,0.1905,4084.5,4084.2,2.44845336]
[1760535102089,3.719,4084.4,4083.2,0.6336]
[1760535102396,3.719,4084.4,4084.3,2.44839997]
[1760535102563,0.001,4084.6,4084.5,2.44828008]
[1760535102764,1.104,4084.6,4084.5,3.59603089]
[1760535103007,3.017,4084.6,4084.5,4.00484809]
[1760535103171,2.617,4084.6,4084.5,4.00484809]
[1760535103362,0.001,4084.6,4084.5,4.00484809]
[1760535103569,0.865,4084.6,4084.5,4.00484809]
[1760535103765,0.865,4084.6,4084.5,3.57154809]
[1760535103970,0.865,4084.6,4084.5,2.44828008]
[1760535104215,2.615,4084.6,4084.5,3.08188008]
[1760535104372,2.615,4084.6,4084.4,2.44831259]
[1760535104578,2.615,4084.6,4083.2,1.728]
[1760535104767,0.001,4084.6,4084.5,2.44828008]
[1760535105078,1.788,4084.6,4084.5,2.57068008]
[1760535105499,1.788,4084.6,4084.5,4.29868008]
[1760535106076,1.788,4084.6,4084.5,1.8504]
[1760535106271,3.719,4084.6,4084.5,1.8504]
[1760535106712,3.9099,4084.6,4083.1,0.65497718]
[1760535106915,0.3133,4084.5,4083.8,0.1224]
[1760535107408,0.2157,4083.9,4082.4,0.2157]
[1760535107608,0.3135,4083.8,4083.1,0.1224]
[1760535107783,2.614,4083.7,4083.1,0.1224]
[1760535107982,0.1911,4083.6,4082.3,0.002]
[1760535108172,0.1224,4083.7,4083.0,0.1224]
[1760535108507,3.428,4083.6,4083.2,2.44900097]
[1760535108710,0.1911,4083.5,4082.3,1.73]
[1760535108874,0.1911,4083.5,4082.3,0.002]
[1760535109070,1.9191,4083.5,4082.3,0.002]
[1760535109287,1.9191,4083.5,4082.4,2.44953948]
[1760535109501,0.2157,4082.5,4082.3,0.002]
[1760535109708,0.2149,4082.5,4082.3,0.002]
[1760535110014,0.1914,4082.4,4082.3,0.002]
[1760535110625,4.36893948,4082.4,4082.3,0.002]
[1760535110788,6.98193948,4082.4,4082.3,0.002]
[1760535111107,4.5324,4082.4,4082.3,0.002]
[1760535111308,1.9194,4082.4,4082.3,0.002]
[1760535111509,3.9074,4082.4,4082.3,0.002]
[1760535112004,8.08493948,4082.4,4082.3,0.002]
[1760535112521,17.51958992,4082.4,4082.3,0.002]
[1760535112673,15.24820692,4082.4,4082.3,0.002]
[1760535112869,14.64716148,4082.4,4082.3,0.002]
[1760535113422,7.62431992,4082.4,4082.3,0.002]
[1760535113586,10.59510092,4082.4,4082.3,0.002]
[1760535113788,2.45068006,4080.5,4080.4,0.002]
[1760535114003,2.45068006,4080.5,4079.9,0.002]
[1760535114004,0.2203,4080.7,4079.9,0.002]
[1760535114177,1.728,4080.5,4079.9,0.002]
[1760535114507,0.2203,4080.7,4079.9,0.002]
[1760535114711,2.614,4080.4,4079.9,0.002]
[1760535114910,0.2272,4081.2,4079.9,0.49242617]
[1760535115110,3.717,4081.1,4080.7,2.45052917]
[1760535115314,1.9131,4081.0,4079.9,0.49242617]
[1760535115610,1.728,4080.8,4079.9,0.002]
[1760535115807,1.728,4080.6,4079.9,0.002]
[1760535116008,4.17862,4080.6,4079.9,0.002]
[1760535116213,4.17863021,4080.6,4079.9,0.002]
[1760535116429,5.445,4080.5,4079.9,0.002]
[1760535116630,0.1851,4080.7,4079.9,0.002]
[1760535116631,3.716,4080.4,4079.9,0.002]
[1760535116793,1.728,4080.3,4079.9,0.002]
[1760535116994,0.1851,4080.7,4079.9,0.002]
[1760535117245,3.716,4080.6,4079.9,0.002]
[1760535117388,0.1851,4080.7,4079.9,0.002]
[1760535117592,3.716,4080.6,4079.9,0.002]
[1760535117810,2.612,4080.5,4079.9,0.002]
[1760535118292,3.716,4080.4,4079.9,0.002]
[1760535118491,0.1224,4080.2,4079.9,0.002]
[1760535118996,3.715,4080.1,4079.9,0.002]
[1760535119334,3.715,4080.0,4079.9,0.002]
[1760535119534,8.07908039,4080.0,4079.9,0.002]
[1760535119742,5.442,4080.0,4079.9,0.002]
[1760535119891,1.728,4080.0,4079.9,0.002]
[1760535120093,0.41,4082.3,4080.5,2.45067804]
[1760535120308,2.708,4082.2,4080.6,2.92886511]
[1760535120542,2.708,4082.2,4080.6,0.502774]
[1760535120696,2.708,4082.2,4080.6,0.2332]
[1760535121022,0.00092545,4081.9,4079.9,0.002]
[1760535121192,0.6336,4081.4,4079.9,0.002]
[1760535121393,1.728,4080.9,4079.9,0.002]
[1760535121707,0.2272,4080.0,4079.9,0.002]
[1760535121906,2.8402,4080.0,4079.9,0.002]
[1760535122104,4.7533,4080.0,4079.9,0.002]
[1760535122503,4.5682,4080.0,4079.9,0.002]
[1760535122748,1.104,4080.0,4079.9,0.002]
[1760535122908,3.716,4080.0,4079.9,0.002]
[1760535123116,5.444,4080.0,4079.9,0.002]
[1760535123422,0.41,4081.5,4079.9,0.24732153]
[1760535123619,1.104,4081.4,4080.0,0.6581098]
[1760535123817,0.2149,4082.5,4080.1,3.11522032]
[1760535124136,4.60154744,4082.4,4080.8,2.4504841]
[1760535124335,3.716,4082.3,4080.9,2.45042952]
[1760535124533,0.2203,4083.2,4081.1,0.6336]
[1760535124724,1.104,4082.2,4082.1,2.4497195]
[1760535124922,0.001,4083.5,4082.2,2.44965949]
[1760535125237,0.001,4083.5,4082.1,0.92105283]
[1760535125437,1.624,4082.8,4082.3,0.6336]
[1760535125599,0.001,4083.5,4083.4,2.4489396]
[1760535125799,0.001,4083.5,4083.4,2.47342899]
[1760535126025,0.344,4083.5,4083.4,3.39560533]
[1760535126332,0.344,4083.5,4083.4,4.02920533]
[1760535126333,1.38,4083.5,4083.4,4.02920533]
[1760535126533,1.38,4083.5,4083.4,2.96450533]
[1760535126694,1.38,4083.5,4082.9,0.2332]
[1760535126898,1.38,4083.5,4082.6,0.2332]
[1760535127093,1.38,4083.5,4083.1,2.44908168]
[1760535127293,1.38,4083.5,4083.2,2.44904718]
[1760535127534,1.38,4083.5,4082.3,0.6336]
[1760535127735,1.38,4083.5,4083.1,2.4490824]
[1760535128032,0.001,4083.5,4083.4,3.0825396]
[1760535128332,2.611,4083.5,4083.4,3.0825396]
[1760535128522,0.001,4083.5,4083.4,3.5136396]
[1760535128831,0.001,4083.5,4083.4,3.53812899]
[1760535129033,0.001,4084.0,4083.9,3.08223978]
[1760535129329,0.005,4084.0,4083.9,3.08223978]
[1760535129828,1.058,4084.0,4083.9,3.53782617]
[1760535130003,1.058,4084.0,4083.9,3.51333978]
[1760535130326,1.058,4084.0,4083.9,0.1224]
[1760535130513,1.058,4084.0,4082.6,0.4532]
[1760535130715,0.2299,4083.9,4081.9,2.90303457]
[1760535130917,1.9579,4083.9,4082.1,0.31362346]
[1760535131102,0.3202,4083.8,4082.1,2.44966863]
[1760535131300,0.3202,4083.7,4081.2,0.6864]
[1760535131509,0.3202,4083.6,4081.2,0.6864]
[1760535131709,2.0482,4083.5,4082.1,0.002]
[1760535131938,0.3212,4083.5,4082.1,0.002]
[1760535132139,1.728,4083.3,4082.1,0.002]
[1760535132342,1.103,4083.2,4082.2,0.671]
[1760535132652,0.001,4083.5,4083.4,3.0825396]
[1760535133023,0.005,4083.5,4083.4,10.45301999]
[1760535133226,0.005,4083.5,4083.4,3.5357396]
[1760535133629,0.0042,4083.5,4083.4,3.5357396]
[1760535133825,0.0042,4083.5,4083.4,4.13421609]
[1760535134025,0.0002,4083.5,4083.4,4.13421609]
[1760535134369,1.3692,4083.5,4083.3,2.44894395]
[1760535134521,1.3692,4083.5,4083.0,0.6336]
[1760535134718,1.3692,4083.5,4082.8,0.6336]
[1760535134923,0.0002,4083.5,4082.9,0.4532]
[1760535135120,2.609,4083.4,4083.3,3.08259958]